fUSD/lending_fUSD_20250322
["ID","MTS","AMOUNT","RATE_DAILY","PERIOD"]
[356562149,1742676638704,-392.78813176,0.00043699,31]
[356562150,1742676638714,-403.12593136,0.00043699,31]
[356562151,1742676638723,-483.43105507,0.00043699,31]
[356562152,1742676638732,-1017.90741236,0.000437,11]
[356562153,1742676638742,-187234.2879111,0.000437,11]
[356562154,1742676638753,-3399.43499915,0.000437,11]
[356562155,1742676638917,-22804.29475368,0.000437,11]
[356562156,1742676640457,-158.36522293,0.000436,2]
[356562157,1742676640466,-333.10575707,0.000437,11]
[356562158,1742676640478,-1241.84865761,0.000437,11]
[356562159,1742676640512,-1069.59227292,0.000437,11]
[356562160,1742676640621,-857.29512094,0.000437,11]
[356562163,1742676640748,-0.0375149,0.000437,11]
[356562165,1742676640759,-2635.91484755,0.000437,11]
[356562167,1742676640770,-373.69669786,0.000437,11]
[356562169,1742676640781,-372.64,0.000437,11]
[356562172,1742676640792,-367.27,0.000437,11]
[356562175,1742676643228,-13342.1753065,0.000437,11]
[356562176,1742676643336,-2122.82465148,0.000437,11]
[356562177,1742676643392,-3650.92418607,0.000437,11]
[356562178,1742676643405,-2859.12281838,0.000437,11]
[356562179,1742676643414,-545.0,0.000437,7]
[356562180,1742676643425,-46718.95084862,0.000437,90]
[356562199,1742676646167,-532.84310986,0.000437,90]
[356562200,1742676646223,-859.72,0.000437,90]
[356562201,1742676646387,-2667.87803496,0.000437,90]
[356562202,1742676646446,-1810.26688763,0.000437,90]
[356562203,1742676646457,-1697.082924,0.000437,90]
[356562204,1742676646469,-1693.593792,0.000437,90]
[356562205,1742676646501,-290.61499565,0.000437,90]
[356562328,1742676701967,-526.65201662,0.0004357,120]
[356562359,1742677832376,-159.88,0.00026849,2]
[356562360,1742677832386,-350.0,0.00027562,3]
[356562361,1742677832395,-350.0,0.00029488,3]
[356562362,1742677832405,-187.98837386,0.00029534,3]
[356562363,1742677832487,-162.01162614,0.00029534,3]
[356562364,1742677832497,-202.42928825,0.000318,2]
[356562365,1742677832507,-159.88,0.00032646,2]
[356562366,1742677832516,-369.0,0.00036,2]
[356562367,1742677832526,-171.36272092,0.00038343,2]
[356562368,1742677832535,-159.88,0.00038443,2]
[356562369,1742677832545,-471.7,0.00040817,2]
[356562370,1742677832554,-198.23,0.00041932,2]
[356562371,1742677832564,-150.0,0.00041959,30]
[356562372,1742677832574,-219.66555848,0.00041959,30]
[356562373,1742677832583,-691.34349009,0.00041993,2]
[356562374,1742677832598,-308.65650991,0.00041993,2]
[356562375,1742677832608,-415.34349009,0.00042053,2]
[356562376,1742677832711,-1048.00650991,0.00042053,2]
[356562377,1742677832721,-314.7975645,0.00042082,2]
[356562411,1742677838361,-468.5724355,0.00042082,2]
[356562412,1742677838371,-460.83996447,0.00042092,2]
[356562413,1742677838469,-345.04003553,0.00042092,2]
[356562414,1742677838480,-237.24355015,0.00042106,2]
[356562415,1742677838514,-1555.56105376,0.00042106,2]
[356562428,1742677841744,-66.20539609,0.00042106,2]
[356562429,1742677841754,-186.25,0.00042186,120]
[356562430,1742677841764,-150.0,0.00042203,2]
[356562431,1742677841773,-150.0,0.00042281,2]
[356562432,1742677841784,-423.22619871,0.00042357,5]
[356562449,1742677846758,-22.77380129,0.00042357,5]
[356562450,1742677846768,-1612.81015409,0.00042358,2]
[356562451,1742677846779,-479.46196868,0.00042358,2]
[356562453,1742678736466,2276.48344439,8e-05,2]
[356562457,1742678846558,800.0,0.000118,4]
[356562458,1742678848654,1600.0,0.000119,4]
[356562459,1742678872786,7723.51655561,0.0001,2]
[356562460,1742678872807,10000.0,0.0001,2]
[356562461,1742678872826,10000.0,0.0001,2]
[356562462,1742678872847,128.41974113,0.0001,2]
[356562463,1742678876617,9871.58025887,0.0001,2]
[356562464,1742678876641,10000.0,0.0001,2]
[356562465,1742678876664,10000.0,0.0001,2]
[356562466,1742678876686,10000.0,0.0001,2]
[356562467,1742678876710,10000.0,0.0001,2]
[356562468,1742678876733,10000.0,0.0001,2]
[356562469,1742678876755,10000.0,0.0001,2]
[356562470,1742678876777,10000.0,0.0001,2]
[356562471,1742678876803,10000.0,0.0001,2]
[356562472,1742678876828,10000.0,0.0001,2]
[356562473,1742678876851,10000.0,0.0001,2]
[356562474,1742678876872,10000.0,0.0001,2]
[356562475,1742678876894,10000.0,0.0001,2]
[356562476,1742678876916,10000.0,0.0001,2]
[356562477,1742678876939,10000.0,0.0001,2]
[356562478,1742678876962,10000.0,0.0001,2]
[356562479,1742678876985,10000.0,0.0001,2]
[356562480,1742678877006,10000.0,0.0001,2]
[356562481,1742678877029,10000.0,0.0001,2]
[356562482,1742678877053,10000.0,0.0001,2]
[356562483,1742678877076,10000.0,0.0001,2]
[356562484,1742678877098,10000.0,0.0001,2]
[356562485,1742678877122,10000.0,0.0001,2]
[356562486,1742678877145,10000.0,0.0001,2]
[356562487,1742678877168,10000.0,0.0001,2]
[356562488,1742678877190,10000.0,0.0001,2]
[356562489,1742678877212,10000.0,0.0001,2]
[356562490,1742678877235,10000.0,0.0001,2]
[356562491,1742678877256,10000.0,0.0001,2]
[356562492,1742678877278,10000.0,0.0001,2]
[356562493,1742678877300,10000.0,0.0001,2]
[356562494,1742678877321,10000.0,0.0001,2]
[356562495,1742678877344,10000.0,0.0001,2]
[356562496,1742678877366,10000.0,0.0001,2]
[356562497,1742678877388,10000.0,0.0001,2]
[356562498,1742678877409,10000.0,0.0001,2]
[356562499,1742678877432,10000.0,0.0001,2]
[356562500,1742678877453,10000.0,0.0001,2]
[356562501,1742678877474,4406.60035323,0.0001,2]
[356562503,1742678901963,1857.68195471,0.0001,2]
[356562504,1742678912971,-202.45,0.0001184,2]
[356562505,1742678914265,2630.42109868,0.0001,2]
[356562506,1742678920277,-150.0,0.0001184,2]
[356562511,1742678982490,-860.96432109,0.0001199,2]
[356562512,1742678982512,-150.0,0.00011999,2]
[356562513,1742678982536,-4051.03567891,0.00012,2]
[356562522,1742679031509,-175.810964,0.0001193,2]
[356562523,1742679031519,-9104.27375826,0.00012,2]
[356562524,1742679031530,-6334.50643181,0.00012,2]
[356562525,1742679031541,-298.695,0.00012,2]
[356562526,1742679031551,-376.230008,0.00012,2]
[356562527,1742679031564,-322.9200006,0.00012,2]
[356562528,1742679031575,-700.0,0.00012,2]
[356562529,1742679031586,-7039.80060688,0.00012,2]
[356562530,1742679031597,-438.20561544,0.00012,2]
[356562531,1742679031608,-540.0,0.00012,2]
[356562532,1742679031619,-385.47,0.00012,2]
[356562533,1742679031630,-1885.6802487,0.00012,2]
[356562534,1742679031641,-2638.46326008,0.00012,2]
[356562535,1742679031653,-445.49189213,0.00012,2]
[356562536,1742679031664,-595.39054192,0.00012,2]
[356562537,1742679031675,-4873.03523845,0.00012,2]
[356562538,1742679031690,-3940.86433615,0.00012,2]
[356562539,1742679031700,-5061.16061818,0.00012,2]
[356562540,1742679031711,-350.49185435,0.00012,2]
[356562541,1742679031721,-324.81619221,0.00012,2]
[356562542,1742679031733,-7702.67026752,0.00012,2]
[356562543,1742679031746,-3180.34249234,0.00012,2]
[356562544,1742679031760,-255.65922882,0.00012,2]
[356562545,1742679031771,-2453.44955276,0.00012,2]
[356562546,1742679031803,-3643.29466563,0.00012,2]
[356562547,1742679031814,-670.10007224,0.00012,2]
[356562548,1742679031825,-1400.78299869,0.00012,2]
[356562549,1742679031836,-4232.56611195,0.00012,2]
[356562550,1742679031848,-1398.98827976,0.00012,2]
[356562893,1742679037461,-1140.74733743,0.00012,2]
[356562894,1742679037472,-9061.49703077,0.00012,2]
[356562895,1742679037485,-2854.40002,0.00012,2]
[356562896,1742679037517,-3156.42650307,0.00012,2]
[356562897,1742679037528,-2074.09258397,0.00012,2]
[356562898,1742679037539,-603.465158,0.00012,2]
[356562899,1742679037550,-848.6840014,0.00012,2]
[356562900,1742679037575,-363.240668,0.00012,2]
[356562901,1742679037634,-199654.62789051,0.00012,2]
[356562902,1742679037645,-350.9109914,0.00012,2]
[356562903,1742679037656,-20176.92047363,0.00012,2]
[356562904,1742679037693,-11323.77274692,0.00012,2]
[356562910,1742679040046,-1375.4138,0.00012,2]
[356562911,1742679040062,-96155.05713446,0.00012,2]
[356562912,1742679040073,-116874.16449039,0.00012,2]
[356562913,1742679040084,-4594.79109732,0.00012,2]
[356562914,1742679040099,-319.83586182,0.00012,2]
[356562915,1742679040110,-1011.06427204,0.00012,2]
[356562916,1742679040122,-963.19752,0.00012,2]
[356562918,1742679040133,-591.88390867,0.00012,2]
[356562919,1742679040152,-1090.1673883,0.00012,2]
[356562927,1742679042630,-109668.87610268,0.00012,2]
[356562928,1742679042642,-6428.85812071,0.00012,2]
[356562930,1742679042657,-13880.54347025,0.00012,2]
[356562931,1742679042669,-1103.78449524,0.00012,2]
[356562932,1742679042681,-2109.66687147,0.00012,2]
[356562933,1742679042692,-72462.32164005,0.00012,2]
[356562934,1742679042709,-1943.25529658,0.00012,2]
[356562935,1742679042721,-111207.3299829,0.00012,2]
[356562936,1742679042733,-407.99666842,0.00012,2]
[356562937,1742679042745,-2803.85817402,0.00012,2]
[356562938,1742679042808,-11869.66841083,0.00012,2]
[356562940,1742679044053,-12888.52295393,0.00012,2]
[356562974,1742679045664,-613.53834092,0.00012,2]
[356562976,1742679045778,-2205.48324674,0.00012,2]
[356562977,1742679045944,-98987.83789561,0.00012,2]
[356562978,1742679046004,-359.06319849,0.00012,2]
[356562984,1742679365201,233.63021,0.00012,6]
[356562985,1742679424602,-293.28535622,0.00011879,2]
[356562986,1742679479834,-150.0,0.000118,2]
[356562987,1742679794079,-349.9373,0.00011519,2]
[356562988,1742679812689,-84.19045321,0.00011519,2]
[356562989,1742679812712,-65.80954679,0.00011798,2]
[356562990,1742679824208,-150.0,0.00011798,2]
[356562991,1742679844633,-24.94631521,0.00011798,2]
[356562992,1742679844655,-125.05368479,0.00011819,2]
[356563013,1742680231757,-150.0,0.00011849,2]
[356563014,1742680231767,-695.20436,0.0001188,2]
[356563015,1742680231778,-1376.79182276,0.0001188,2]
[356563016,1742680231873,-1582.22003,0.0001188,2]
[356563017,1742680231934,-12255.20306442,0.0001188,2]
[356563018,1742680231945,-420.42,0.0001188,2]
[356563019,1742680231998,-1865.45817321,0.0001188,2]
[356563028,1742680237652,-17770.15287092,0.0001188,2]
[356563029,1742680237664,-16098.20203296,0.0001188,2]
[356563030,1742680237677,-1520.0,0.0001188,2]
[356563031,1742680237688,-663.77940649,0.0001188,2]
[356563032,1742680237713,-303.22090021,0.0001188,2]
[356563033,1742680237722,-150.0,0.00011899,2]
[356563034,1742680237732,-454.4224,0.000119,2]
[356563035,1742680237741,-829.199,0.000119,2]
[356563036,1742680237751,-471.4584,0.000119,2]
[356563037,1742680237760,-1268.29929979,0.000119,2]
[356563038,1742680237771,-445.42957939,0.000119,2]
[356563039,1742680237832,-343.67408276,0.000119,2]
[356563040,1742680237843,-661.21728265,0.000119,2]
[356563041,1742680237855,-735.0921918,0.000119,2]
[356563042,1742680237867,-289.80501746,0.000119,2]
[356563043,1742680237879,-435.55408371,0.000119,2]
[356563052,1742680239849,-437.10318138,0.000119,2]
[356563053,1742680239861,-2610.26278106,0.000119,2]
[356563054,1742680239871,-1769.9121,0.000119,2]
[356563055,1742680239881,-316.5384946,0.000119,2]
[356563056,1742680239891,-45298.41268687,0.00012,2]
[356563057,1742680239907,-4461.00142383,0.00012,2]
[356563058,1742680239968,-8091.70221449,0.00012,2]
[356563059,1742680240088,-295.2679983,0.00012,2]
[356563060,1742680240100,-732.18335078,0.00012,2]
[356563061,1742680240217,-0.00502449,0.00012,2]
[356563071,1742680242831,-11459.32520293,0.00012,2]
[356563072,1742680242844,-763.42564321,0.00012,2]
[356563073,1742680242856,-720.79,0.00012,2]
[356563074,1742680242870,-646.2,0.00012,2]
[356563075,1742680242939,-1681.85917043,0.00012,2]
[356563076,1742680242951,-703.75666156,0.00012,2]
[356563077,1742680242998,-536158.79092718,0.00012,2]
[356563078,1742680243007,-1085.34754804,0.00012,2]
[356563079,1742680243016,-200.0,0.00012,2]
[356563080,1742680243025,-200.0,0.00012,2]
[356563081,1742680243034,-200.0,0.0001212,2]
[356563082,1742680243043,-200.0,0.00012241,2]
[356563083,1742680243053,-200.0,0.00012364,2]
[356563084,1742680243062,-200.0,0.00012487,2]
[356563085,1742680243073,-255.0,0.00012982,2]
[356563086,1742680243083,-150.0,0.00013001,2]
[356563087,1742680243094,-150.0,0.00013001,2]
[356563088,1742680243103,-154.38,0.00013257,2]
[356563089,1742680243112,-607.69,0.00013699,2]
[356563091,1742680243121,-500.0,0.00013699,2]
[356563092,1742680243131,-500.0,0.00013699,2]
[356563093,1742680243142,-500.0,0.00013699,2]
[356563094,1742680243154,-500.0,0.00013699,2]
[356563095,1742680243164,-500.0,0.00013699,2]
[356563097,1742680243174,-500.0,0.00013699,2]
[356563098,1742680243183,-500.0,0.00013699,2]
[356563099,1742680243192,-500.0,0.00013699,2]
[356563100,1742680243202,-500.0,0.00013699,2]
[356563101,1742680243211,-500.0,0.00013699,2]
[356563102,1742680243220,-500.0,0.00013699,2]
[356563103,1742680243229,-500.0,0.00013699,2]
[356563104,1742680243238,-500.0,0.00013699,2]
[356563105,1742680243247,-500.0,0.00013699,2]
[356563106,1742680243256,-500.0,0.00013699,2]
[356563107,1742680243265,-500.0,0.00013699,2]
[356563108,1742680243276,-310.50785248,0.00013699,2]
[356563109,1742680243286,-500.0,0.00013699,2]
[356563110,1742680243295,-500.0,0.00013699,2]
[356563111,1742680243304,-500.0,0.00013699,2]
[356563112,1742680243313,-500.0,0.00013699,2]
[356563113,1742680243323,-500.0,0.00013699,2]
[356563114,1742680243332,-500.0,0.00013699,2]
[356563115,1742680243342,-500.0,0.00013699,2]
[356563116,1742680243351,-500.0,0.00013699,2]
[356563117,1742680243360,-500.0,0.00013699,2]
[356563118,1742680243370,-500.0,0.00013699,2]
[356563119,1742680243379,-500.0,0.00013699,2]
[356563120,1742680243388,-500.0,0.00013699,2]
[356563121,1742680243397,-500.0,0.00013699,2]
[356563122,1742680243406,-500.0,0.00013699,2]
[356563123,1742680243415,-500.0,0.00013699,2]
[356563124,1742680243424,-500.0,0.00013699,2]
[356563125,1742680243433,-501.16753916,0.00013699,2]
[356563126,1742680243443,-500.0,0.000137,2]
[356563127,1742680243452,-1200.0,0.000137,2]
[356563128,1742680243462,-37604.14017142,0.00014124,2]
[356563129,1742680243471,-433.0,0.0001416,2]
[356563130,1742680243480,-736.0,0.00015457,2]
[356563131,1742680243489,-1035.66,0.00016317,2]
[356563132,1742680243498,-200.0,0.00016317,2]
[356563133,1742680243507,-1067.39,0.00016597,2]
[356563134,1742680243516,-23900.0,0.00016597,2]
[356563135,1742680243525,-11956.02,0.00016605,2]
[356563136,1742680243534,-1000.0,0.00016661,2]
[356563137,1742680243544,-202.41,0.00016667,2]
[356563138,1742680243553,-188.06,0.00016712,2]
[356563139,1742680243563,-240.0,0.00016861,2]
[356563140,1742680243571,-607.69,0.00016895,2]
[356563141,1742680243581,-700.0,0.000179,6]
[356563142,1742680243590,-179.23,0.00018174,2]
[356563143,1742680243599,-290.33,0.00018174,2]
[356563144,1742680243609,-6009.05,0.00018193,2]
[356563145,1742680243618,-200.0,0.00018199,2]
[356563146,1742680243627,-15397.17,0.000182,2]
[356563147,1742680243637,-1277.28976098,0.00018265,2]
[356563148,1742680243646,-1011.05,0.00018401,2]
[356563149,1742680243655,-600.0,0.00018401,2]
[356563150,1742680243665,-2485.96,0.00018625,2]
[356563151,1742680243675,-1883.28593913,0.00018651,2]
[356563152,1742680243684,-31364.82,0.00018678,2]
[356563153,1742680243694,-500.0,0.00018708,2]
[356563154,1742680243703,-1000.0,0.00018744,2]
[356563155,1742680243712,-279.12,0.00018815,2]
[356563156,1742680243722,-5448.63,0.00018834,2]
[356563157,1742680243733,-150.0,0.00018913,7]
[356563158,1742680243742,-5204.73913913,0.00019,2]
[356563159,1742680243751,-942.4,0.00019161,2]
[356563160,1742680243761,-3244.22,0.00019178,2]
[356563161,1742680243771,-150.0,0.00019178,2]
[356563162,1742680243780,-354.0,0.000192,2]
[356563163,1742680243789,-943.0,0.000192,2]
[356563164,1742680243799,-190.2,0.00019441,2]
[356563165,1742680243808,-154.38,0.00019886,2]
[356563166,1742680243818,-188.06,0.00019929,2]
[356563167,1742680243827,-607.69,0.00020091,2]
[356563168,1742680243836,-27490.94,0.00020482,2]
[356563169,1742680243846,-20561.22,0.00020548,2]
[356563170,1742680243855,-174.65,0.00020548,2]
[356563171,1742680243864,-250.0,0.00020548,2]
[356563172,1742680243874,-158.65,0.000206,2]
[356563173,1742680243883,-1011.05,0.00020701,2]
[356563174,1742680243892,-7938.4,0.00020822,2]
[356563175,1742680243902,-1000.0,0.00020827,2]
[356563176,1742680243911,-5067.22,0.0002137,2]
[356563177,1742680243921,-166.66,0.00021715,2]
[356563178,1742680243930,-191.15,0.00021917,2]
[356563179,1742680243939,-350.0,0.00021918,2]
[356563180,1742680243949,-166.66,0.00022431,2]
[356563181,1742680243958,-1000.0,0.00022909,2]
[356563182,1742680243967,-1011.05,0.00023002,2]
[356563183,1742680243976,-188.06,0.00023145,2]
[356563184,1742680243986,-166.66,0.00023148,2]
[356563185,1742680243996,-191.15,0.00023287,2]
[356563186,1742680244006,-250.0,0.00023288,2]
[356563187,1742680244015,-607.69,0.00023288,2]
[356563188,1742680244024,-179.23,0.00023836,2]
[356563189,1742680244034,-166.66,0.00023865,2]
[356563190,1742680244044,-166.66,0.00024582,2]
[356563191,1742680244054,-191.15,0.00024657,2]
[356563192,1742680244064,-354.42129086,0.000247,2]
[356563193,1742680244073,-943.87992099,0.000247,2]
[356563194,1742680244083,-500.0,0.00024773,2]
[356563195,1742680244091,-300.60535641,0.00024773,2]
[356563196,1742680244101,-151.30905469,0.00024773,2]
[356563197,1742680244111,-604.07907708,0.00024773,2]
[356563198,1742680244120,-500.0,0.00024773,2]
[356563199,1742680244292,-500.0,0.00024773,2]
[356563200,1742680244302,-453.65909264,0.00024773,2]
[356563201,1742680244312,-317.4149183,0.00024773,2]
[356563202,1742680244323,-500.0,0.00024773,2]
[356563203,1742680244332,-500.0,0.00024773,2]
[356563204,1742680244343,-420.41922119,0.00024773,2]
[356563205,1742680244353,-161.07693058,0.00024773,2]
[356563206,1742680244362,-646.83157923,0.00024773,2]
[356563207,1742680244371,-312.95946897,0.00024773,2]
[356563208,1742680244381,-500.0,0.00024773,2]
[356563209,1742680244390,-158.44681689,0.00024773,2]
[356563210,1742680244400,-500.43447289,0.00024773,2]
[356563211,1742680244409,-151.0,0.000248,7]
[356563212,1742680244419,-151.0,0.000248,7]
[356563213,1742680244428,-151.0,0.000248,7]
[356563214,1742680244437,-151.0,0.000248,7]
[356563215,1742680244446,-151.0,0.000248,7]
[356563216,1742680244455,-151.0,0.000248,7]
[356563217,1742680244465,-151.0,0.000248,7]
[356563218,1742680244474,-151.0,0.000248,7]
[356563219,1742680244483,-151.0,0.000248,7]
[356563220,1742680244492,-151.0,0.000248,7]
[356563221,1742680244501,-151.0,0.000248,7]
[356563222,1742680244511,-151.0,0.000248,7]
[356563223,1742680244520,-151.0,0.000248,7]
[356563224,1742680244529,-151.0,0.000248,7]
[356563225,1742680244538,-151.0,0.000248,7]
[356563226,1742680244548,-151.0,0.000248,7]
[356563227,1742680244557,-151.0,0.000248,7]
[356563228,1742680244567,-151.0,0.000248,7]
[356563229,1742680244576,-151.0,0.000248,7]
[356563230,1742680244586,-151.0,0.000248,7]
[356563231,1742680244595,-151.0,0.000248,7]
[356563232,1742680244605,-151.0,0.000248,7]
[356563233,1742680244614,-151.0,0.000248,7]
[356563234,1742680244623,-151.0,0.000248,7]
[356563235,1742680244632,-278.48205791,0.000248,7]
[356563236,1742680244641,-282.11168191,0.000248,2]
[356563237,1742680244650,-340458.900439,0.000248,2]
[356563238,1742680244659,-151.0,0.000248,7]
[356563239,1742680244668,-151.0,0.000248,7]
[356563240,1742680244677,-151.0,0.000248,7]
[356563241,1742680244685,-151.0,0.000248,7]
[356563242,1742680244694,-151.0,0.000248,7]
[356563243,1742680244704,-151.0,0.000248,7]
[356563244,1742680244713,-626.50189685,0.00024873,2]
[356563245,1742680244722,-151.30905549,0.00024873,2]
[356563246,1742680244731,-524.41221623,0.00024873,2]
[356563247,1742680244741,-14802.5608887,0.0002489,2]
[356563248,1742680244750,-151.0,0.000249,7]
[356563249,1742680244759,-151.0,0.000249,7]
[356563250,1742680244768,-151.0,0.000249,7]
[356563251,1742680244777,-151.0,0.000249,7]
[356563252,1742680244786,-151.0,0.000249,7]
[356563253,1742680244796,-151.0,0.000249,7]
[356563254,1742680244805,-151.0,0.000249,7]
[356563255,1742680244814,-151.0,0.000249,7]
[356563256,1742680244823,-151.0,0.000249,7]
[356563257,1742680244832,-151.0,0.000249,7]
[356563258,1742680244841,-151.0,0.000249,7]
[356563259,1742680244851,-151.0,0.000249,7]
[356563260,1742680244860,-151.0,0.000249,7]
[356563261,1742680244869,-151.0,0.000249,7]
[356563262,1742680244878,-151.0,0.000249,7]
[356563263,1742680244887,-151.0,0.000249,7]
[356563264,1742680244896,-151.0,0.000249,7]
[356563265,1742680244906,-151.0,0.000249,7]
[356563266,1742680244915,-152.787327,0.000249,7]
[356563267,1742680244925,-152.27705,0.000249,7]
[356563268,1742680244934,-151.0,0.000249,7]
[356563269,1742680244943,-151.0,0.000249,7]
[356563270,1742680244953,-151.0,0.000249,7]
[356563271,1742680244962,-153.876443,0.000249,7]
[356563272,1742680244972,-151.0,0.000249,7]
[356563273,1742680244981,-151.0,0.000249,7]
[356563274,1742680244991,-151.0,0.000249,7]
[356563275,1742680245000,-1400.0,0.000249,9]
[356563276,1742680245010,-151.0,0.000249,7]
[356563277,1742680245019,-151.0,0.000249,7]
[356563278,1742680245029,-151.0,0.000249,7]
[356563279,1742680245039,-151.0,0.000249,7]
[356563280,1742680245048,-151.0,0.000249,7]
[356563281,1742680245058,-151.0,0.000249,7]
[356563282,1742680245067,-151.0,0.000249,7]
[356563283,1742680245077,-151.0,0.000249,7]
[356563284,1742680245087,-151.0,0.000249,7]
[356563285,1742680245097,-151.0,0.000249,7]
[356563286,1742680245107,-151.0,0.000249,7]
[356563287,1742680245116,-151.0,0.000249,7]
[356563288,1742680245126,-520.86209,0.000249,7]
[356563289,1742680245135,-520.86209,0.000249,7]
[356563290,1742680245145,-151.0,0.000249,7]
[356563291,1742680245154,-151.0,0.000249,7]
[356563292,1742680245164,-151.0,0.000249,7]
[356563293,1742680245174,-606.722214,0.000249,7]
[356563294,1742680245185,-606.722214,0.000249,7]
[356563295,1742680245194,-1000.0,0.00024992,2]
[356563296,1742680245203,-2000.0,0.00025255,4]
[356563297,1742680245213,-166.66,0.00025299,2]
[356563298,1742680245223,-1011.05,0.00025302,120]
[356563299,1742680245232,-1132.802,0.00025913,11]
[356563300,1742680245242,-213.28421599,0.00025967,2]
[356563301,1742680245251,-500.0,0.00025967,2]
[356563302,1742680245260,-500.55515622,0.00025967,2]
[356563303,1742680245270,-191.15,0.00026027,2]
[356563304,1742680245282,-2485.96,0.00026074,2]
[356563305,1742680245290,-500.0,0.000262,2]
[356563306,1742680245300,-188.06,0.00026361,2]
[356563307,1742680245309,-607.69,0.00026484,2]
[356563308,1742680245319,-160.29316626,0.000265,2]
[356563309,1742680245330,-1280.0,0.00026564,2]
[356563310,1742680245340,-642.0,0.00026564,2]
[356563311,1742680245349,-2035.0,0.00026564,2]
[356563312,1742680245360,-1394.779,0.00026564,2]
[356563313,1742680245370,-572.0,0.00026564,2]
[356563314,1742680245379,-787.0,0.00026564,2]
[356563315,1742680245390,-1272.0,0.00026564,2]
[356563316,1742680245400,-542.0,0.00026564,2]
[356563317,1742680245409,-4083.0,0.00026564,2]
[356563318,1742680245418,-1430.0,0.00026564,2]
[356563319,1742680245428,-896.0,0.00026564,2]
[356563320,1742680245437,-1014.0,0.00026564,2]
[356563321,1742680245447,-190.039,0.00026564,2]
[356563322,1742680245456,-3938.0,0.00026564,2]
[356563323,1742680245466,-150.56,0.00026849,2]
[356563324,1742680245476,-198.28,0.00026849,2]
[356563325,1742680245485,-9673.33681214,0.00026879,2]
[356563326,1742680245495,-9673.33681214,0.00026879,2]
[356563327,1742680245504,-3521.14,0.00027123,2]
[356563328,1742680245513,-191.15,0.00027397,2]
[356563329,1742680245522,-1342.87,0.00027397,2]
[356563330,1742680245532,-151.0,0.00027397,7]
[356563331,1742680245541,-495.81,0.00027397,2]
[356563332,1742680245551,-8106.43,0.00027397,2]
[356563333,1742680245560,-3559.78,0.00027397,2]
[356563334,1742680245570,-9300.97,0.00027397,2]
[356563335,1742680245580,-3618.76,0.00027397,2]
[356563336,1742680245589,-1526.62,0.00027397,2]
[356563337,1742680245599,-9999.99,0.00027397,2]
[356563338,1742680245608,-9999.99,0.00027397,2]
[356563339,1742680245618,-205.75109663,0.000274,4]
[356563340,1742680245627,-1011.05,0.00027602,120]
[356563341,1742680245636,-151.0,0.00028203,7]
[356563342,1742680245645,-151.26403,0.00028203,7]
[356563343,1742680245654,-151.0,0.00028203,7]
[356563344,1742680245664,-151.0,0.00028203,7]
[356563345,1742680245673,-151.0,0.00028203,7]
[356563346,1742680245683,-151.0,0.00028203,7]
[356563347,1742680245693,-151.0,0.00028203,7]
[356563348,1742680245702,-151.0,0.00028203,7]